fUST/lending_fUST_20250623
["ID","MTS","AMOUNT","RATE_DAILY","PERIOD"]
[367038156,1750629039411,-1500.0,0.00026482,28]
[367038157,1750629039420,-1500.0,0.00026482,28]
[367038159,1750629039429,-1500.0,0.00026482,28]
[367038160,1750629039438,-1500.0,0.00026482,28]
[367038162,1750629039448,-1500.0,0.00026482,28]
[367038164,1750629039457,-1500.0,0.00026482,28]
[367038166,1750629039467,-1500.0,0.00026482,28]
[367038168,1750629039476,-1500.0,0.00026482,28]
[367038170,1750629039486,-1500.0,0.00026482,28]
[367038172,1750629039496,-1500.0,0.00026482,28]
[367038174,1750629039505,-1500.0,0.00026482,28]
[367038176,1750629039514,-1500.0,0.00026482,28]
[367038178,1750629039523,-1500.0,0.00026482,28]
[367038180,1750629039532,-1500.0,0.00026482,28]
[367038182,1750629039541,-1500.0,0.00026482,28]
[367038184,1750629039551,-1500.0,0.00026482,28]
[367038185,1750629039564,-1500.0,0.00026482,28]
[367038186,1750629039573,-1500.0,0.00026482,28]
[367038187,1750629039582,-1500.0,0.00026482,28]
[367038189,1750629039591,-1500.0,0.00026482,28]
[367038191,1750629039602,-1500.0,0.00026482,28]
[367038193,1750629039611,-1500.0,0.00026482,28]
[367038195,1750629039620,-1500.0,0.00026482,28]
[367038196,1750629039631,-1500.0,0.00026482,28]
[367038198,1750629039640,-1500.0,0.00026482,28]
[367038199,1750629039649,-1500.0,0.00026482,28]
[367038200,1750629039659,-1500.0,0.00026482,28]
[367038201,1750629039668,-1500.0,0.00026482,28]
[367038202,1750629039677,-1500.0,0.00026482,28]
[367038203,1750629039686,-1500.0,0.00026482,28]
[367038204,1750629039696,-1500.0,0.00026482,28]
[367038205,1750629039705,-1500.0,0.00026482,28]
[367038206,1750629039715,-1500.0,0.00026482,28]
[367038207,1750629039724,-1500.0,0.00026482,28]
[367038208,1750629039734,-1500.0,0.00026482,28]
[367038209,1750629039744,-1500.0,0.00026482,28]
[367038210,1750629039753,-1500.0,0.00026482,28]
[367038211,1750629039764,-1500.0,0.00026482,28]
[367038212,1750629039773,-1500.0,0.00026482,28]
[367038213,1750629039782,-1500.0,0.00026482,28]
[367038214,1750629039792,-1500.0,0.00026482,28]
[367038215,1750629039801,-1500.0,0.00026482,28]
[367038216,1750629039810,-1500.0,0.00026482,28]
[367038217,1750629039820,-1500.0,0.00026482,28]
[367038218,1750629039829,-265.706403,0.00026483,7]
[367038220,1750629039839,-151.0,0.00026483,7]
[367038221,1750629039849,-151.0,0.00026483,7]
[367038222,1750629039859,-151.0,0.00026483,7]
[367038224,1750629039868,-151.0,0.00026483,7]
[367038225,1750629039878,-151.0,0.00026483,7]
[367038226,1750629039887,-151.0,0.00026483,7]
[367038228,1750629039897,-151.0,0.00026483,7]
[367038230,1750629039907,-151.0,0.00026483,7]
[367038231,1750629039916,-151.0,0.00026483,7]
[367038233,1750629039926,-151.0,0.00026483,7]
[367038234,1750629039935,-151.0,0.00026483,7]
[367038235,1750629039945,-151.0,0.00026483,7]
[367038236,1750629039955,-151.0,0.00026483,7]
[367038237,1750629039964,-234.827056,0.00026483,7]
[367038238,1750629039974,-151.0,0.00026483,7]
[367038239,1750629039984,-151.0,0.00026483,7]
[367038240,1750629039994,-151.0,0.00026483,7]
[367038241,1750629040004,-151.0,0.00026483,7]
[367038242,1750629040013,-151.0,0.00026483,7]
[367038243,1750629040022,-151.0,0.00026483,7]
[367038244,1750629040032,-151.0,0.00026483,7]
[367038245,1750629040041,-151.0,0.00026483,7]
[367038246,1750629040051,-151.0,0.00026483,7]
[367038247,1750629040060,-151.0,0.00026483,7]
[367038248,1750629040069,-151.0,0.00026483,7]
[367038249,1750629040078,-151.0,0.00026483,7]
[367038250,1750629040088,-151.0,0.00026483,7]
[367038252,1750629040098,-151.0,0.00026483,7]
[367038254,1750629040107,-151.0,0.00026483,7]
[367038256,1750629040117,-151.0,0.00026483,7]
[367038259,1750629040126,-208.692959,0.00026483,7]
[367038260,1750629040136,-500.0,0.00026487,10]
[367038261,1750629040146,-500.0,0.00026487,10]
[367038262,1750629040156,-4456.30366699,0.00026488,2]
[367038263,1750629040165,-589.228358,0.00026489,2]
[367038264,1750629040175,-500.0,0.00026489,2]
[367038265,1750629040185,-500.0,0.00026489,2]
[367038266,1750629040195,-500.0,0.00026489,2]
[367038267,1750629040205,-500.0,0.00026489,2]
[367038268,1750629040214,-453.02895447,0.00026489,2]
[367038269,1750629040224,-500.0,0.00026489,2]
[367038270,1750629040234,-500.0,0.00026489,2]
[367038271,1750629040244,-500.0,0.00026489,2]
[367038272,1750629040253,-500.0,0.00026489,2]
[367038273,1750629040263,-7453.06077213,0.0002649,2]
[367038274,1750629040273,-151.0,0.00026499,2]
[367038275,1750629040283,-1558.399999,0.000265,2]
[367038276,1750629040293,-1290.61,0.000265,7]
[367038277,1750629040302,-71389.65,0.000265,2]
[367038278,1750629040312,-5016.57,0.000265,7]
[367038279,1750629040321,-1000.0,0.000265,5]
[367038280,1750629040331,-1000.0,0.000265,5]
[367038281,1750629040341,-836.56272071,0.000265,3]
[367038282,1750629040351,-425.01221603,0.000265,3]
[367038283,1750629040361,-846.39664074,0.000265,3]
[367038284,1750629040370,-12551.52821599,0.000265,3]
[367038285,1750629040380,-230.14598372,0.000265,3]
[367038286,1750629040390,-160.0,0.000265,3]
[367038287,1750629040399,-160.0,0.000265,3]
[367038288,1750629040408,-524.0,0.000265,2]
[367038289,1750629040417,-151.0,0.00026504,7]
[367038290,1750629040427,-151.0,0.00026504,7]
[367038291,1750629040437,-151.0,0.00026504,7]
[367038292,1750629040446,-151.0,0.00026504,7]
[367038293,1750629040456,-194.964458,0.00026504,7]
[367038294,1750629040465,-246.504618,0.00026504,7]
[367038295,1750629040474,-246.504618,0.00026504,7]
[367038296,1750629040484,-246.504618,0.00026504,7]
[367038297,1750629040493,-246.504618,0.00026504,7]
[367038298,1750629040503,-246.504618,0.00026504,7]
[367038299,1750629040513,-246.504618,0.00026504,7]
[367038300,1750629040523,-246.504618,0.00026504,7]
[367038301,1750629040533,-246.504618,0.00026504,7]
[367038302,1750629040542,-246.504618,0.00026504,7]
[367038303,1750629040553,-246.504618,0.00026504,7]
[367038304,1750629040567,-246.504618,0.00026504,7]
[367038305,1750629040576,-246.504618,0.00026504,7]
[367038306,1750629040586,-246.504618,0.00026504,7]
[367038307,1750629040595,-246.504618,0.00026504,7]
[367038308,1750629040606,-246.504618,0.00026504,7]
[367038309,1750629040616,-246.504618,0.00026504,7]
[367038310,1750629040625,-246.504618,0.00026504,7]
[367038311,1750629040637,-246.504618,0.00026504,7]
[367038312,1750629040647,-246.504618,0.00026504,7]
[367038313,1750629040657,-246.50461,0.00026504,7]
[367038314,1750629040667,-151.0,0.00026504,7]
[367038316,1750629040676,-151.0,0.00026504,7]
[367038317,1750629040686,-151.0,0.00026504,7]
[367038318,1750629040695,-151.0,0.00026504,7]
[367038319,1750629040705,-151.0,0.00026504,7]
[367038320,1750629040715,-151.0,0.00026504,7]
[367038321,1750629040724,-151.0,0.00026504,7]
[367038322,1750629040734,-151.0,0.00026504,7]
[367038323,1750629040744,-151.0,0.00026504,7]
[367038324,1750629040754,-151.0,0.00026504,7]
[367038325,1750629040763,-1226.77637608,0.00026504,2]
[367038326,1750629040773,-855.79771693,0.00026504,2]
[367038327,1750629040783,-564892.66055776,0.00026504,20]
[367038328,1750629040792,-11084.2849584,0.00026504,20]
[367038329,1750629041926,-160.0,0.0002641,7]
[367038330,1750629041935,-160.0,0.000265,3]
[367038331,1750629041944,-2655.58,0.00026504,20]
[367038352,1750629042911,-546.02415716,0.00026504,20]
[367038419,1750629045946,-150.0,0.00025589,2]
[367038421,1750629045956,-15744.58689489,0.00026504,20]
[367038506,1750629099324,150.0,0.00022071,30]
[367038507,1750629099722,161.65,0.00024078,30]
[367038508,1750629190523,150.0,0.00022199,30]
[367038509,1750629190950,158.25,0.00024217,30]
[367038510,1750629668468,150.0,0.00022298,30]
[367038511,1750629668884,154.88,0.00024326,30]
[367038512,1750629746907,150.0,0.00022185,30]
[367038513,1750629747301,151.56,0.00024202,30]
[367038514,1750629828717,150.0,0.00022058,30]
[367038515,1750629829143,150.0,0.00024064,30]
[367038516,1750629909884,150.0,0.00021847,30]
[367038517,1750629910302,150.0,0.00023834,30]
[367038518,1750629937362,-150.0,0.000227,2]
[367038519,1750629937385,-3.20634918,0.000227,2]
[367038520,1750629949079,-150.93301978,0.000227,2]
[367038522,1750629990562,150.0,0.00022075,30]
[367038523,1750629990969,150.0,0.00024082,30]
[367038525,1750630009082,282.514314,0.00013699,2]
[367038526,1750630028085,-282.514314,0.00020187,2]
[367038527,1750630028107,-660.49307434,0.00022,2]
[367038528,1750630034126,-3902.50692566,0.00022,2]
[367038529,1750630034147,-83.46463104,0.000227,2]
[367038530,1750630034168,-202.45745506,0.00023077,2]
[367038531,1750630034190,-300.0,0.00023175,2]
[367038532,1750630034210,-300.0,0.00023176,2]
[367038533,1750630034231,-1200.0,0.00023176,2]
[367038534,1750630034251,-300.0,0.00023176,2]
[367038535,1750630034271,-4777.0,0.00023177,3]
[367038536,1750630034290,-4777.0,0.00023177,3]
[367038537,1750630034310,-4778.0,0.00023177,3]
[367038538,1750630034329,-117.17454821,0.00023177,3]
[367038539,1750630035146,-2266.87360974,0.00023177,3]
[367038540,1750630072321,150.0,0.00021909,30]
[367038541,1750630072774,150.0,0.00023901,30]
[367038543,1750630153151,-166.86271131,0.00021077,2]
[367038544,1750630157075,-2253.38180279,0.00023077,2]
[367038545,1750630160738,150.0,0.00021901,30]
[367038546,1750630161150,150.0,0.00023892,30]
[367038547,1750630171097,-1722.75687668,0.00023077,2]
[367038548,1750630171119,-300.0,0.00023176,2]
[367038549,1750630171140,-85.04505196,0.00023177,3]
[367038601,1750630232154,-666.0,0.00022897,2]
[367038603,1750630232163,-300.0,0.00023176,2]
[367038605,1750630232173,-1200.0,0.00023176,2]
[367038607,1750630232182,-2307.90679009,0.00023177,3]
[367038609,1750630232191,-160.0,0.00023177,3]
[367038611,1750630232201,-230.14598372,0.00023177,3]
[367038613,1750630232210,-160.0,0.00023177,3]
[367038616,1750630232219,-161.52122695,0.00023177,3]
[367038620,1750630232235,-675.04149376,0.00023177,3]
[367038623,1750630232244,-846.39664074,0.00023177,3]
[367038626,1750630232253,-425.01221603,0.00023177,3]
[367038629,1750630232262,-11276.01108667,0.00023177,3]
[367038632,1750630232271,-940.3867489,0.00023177,2]
[367038635,1750630232280,-202.45745506,0.000238,2]
[367038638,1750630232289,-500.0,0.00023891,2]
[367038641,1750630232298,-500.0,0.00023891,2]
[367038644,1750630232308,-500.0,0.00023891,2]
[367038646,1750630232318,-500.0,0.00023891,2]
[367038649,1750630232327,-500.0,0.00023891,2]
[367038653,1750630232337,-500.0,0.00023891,2]
[367038655,1750630232346,-449.2837705,0.00023891,2]
[367038658,1750630232356,-500.0,0.00023891,2]
[367038661,1750630232365,-500.0,0.00023891,2]
[367038664,1750630232374,-500.0,0.00023891,2]
[367038667,1750630232383,-15169.36883116,0.00023892,2]
[367038920,1750630238046,-2500.8274349,0.00023892,2]
[367038921,1750630238077,-7229.80373394,0.00023892,2]
[367038922,1750630238086,-202.62406348,0.000239,10]
[367038923,1750630238095,-160.0,0.00023907,2]
[367038924,1750630238104,-206.52390813,0.00023943,2]
[367038925,1750630238113,-500.0,0.00023946,2]
[367038926,1750630238123,-202.62406334,0.00024067,10]
[367038927,1750630238133,-500.0,0.00024069,2]
[367038928,1750630238142,-178.577358,0.00024103,2]
[367038929,1750630238152,-202.62406334,0.00024233,10]
[367038930,1750630238161,-202.62406334,0.000244,11]
[367038931,1750630238170,-500.0,0.00024411,2]
[367038932,1750630238179,-202.62406334,0.00024567,11]
[367038933,1750630238188,-1700.0,0.000246,2]
[367038934,1750630238198,-242.0,0.00024658,3]
[367038935,1750630238207,-1000.0,0.00024658,2]
[367038936,1750630238216,-1000.0,0.00024658,2]
[367038937,1750630238225,-1000.0,0.00024658,2]
[367038938,1750630238235,-1000.0,0.00024658,2]
[367038939,1750630238244,-12551.52821599,0.00024675,2]
[367038940,1750630238253,-160.0,0.00024675,2]
[367038941,1750630238262,-160.0,0.00024676,2]
[367038942,1750630238272,-836.56272071,0.00024676,2]
[367038943,1750630238281,-160.0,0.00024676,2]
[367038944,1750630238291,-425.01221603,0.00024676,2]
[367038945,1750630238300,-846.39664074,0.00024676,2]
[367038946,1750630238309,-213.59462818,0.00024676,2]
[367038947,1750630238321,-230.14598372,0.00024676,2]
[367038948,1750630238331,-202.62406334,0.00024733,11]
[367038949,1750630238340,-201.9776132,0.00024822,2]
[367038950,1750630238349,-202.62406334,0.000249,12]
[367038952,1750630238359,-1000.0,0.00024959,2]
[367038953,1750630238368,-1772.49,0.00025,2]
[367038954,1750630238377,-202.62406334,0.00025067,12]
[367038955,1750630238386,-420.0,0.00025154,2]
[367038956,1750630238395,-420.0,0.00025154,2]
[367038957,1750630238404,-207.4,0.00025157,2]
[367038958,1750630238413,-1000.0,0.00025172,5]
[367038959,1750630238423,-202.62406334,0.00025233,12]
[367038960,1750630238432,-1680.0,0.00025271,2]
[367038961,1750630238441,-202.62406334,0.000254,13]
[367038962,1750630238450,-202.62406334,0.00025567,13]
[367038963,1750630238459,-150.0,0.00025591,2]
[367038964,1750630238468,-965.0,0.00025591,2]
[367038965,1750630238477,-2161.0,0.00025591,2]
[367038966,1750630238486,-654.0,0.00025591,2]
[367038967,1750630238495,-431.53699681,0.00025728,2]
[367038968,1750630238504,-202.62406334,0.00025733,13]
[367038969,1750630238514,-10000.0,0.000259,2]
[367038970,1750630238523,-202.62406334,0.000259,14]
[367038971,1750630238532,-168.0,0.00025925,2]
[367038972,1750630238542,-332.33,0.00025963,10]
[367038973,1750630238551,-1389.910228,0.00025973,8]
[367038974,1750630238560,-151.0,0.00025973,8]
[367038975,1750630238570,-151.0,0.00025973,8]
[367038976,1750630238580,-151.0,0.00025973,8]
[367038977,1750630238589,-151.0,0.00025977,14]
[367038978,1750630238598,-151.0,0.00025977,14]
[367038979,1750630238607,-151.0,0.00025977,14]
[367038980,1750630238617,-8000.0,0.00026,2]
[367038981,1750630238626,-151.0,0.00026,8]
[367038982,1750630238635,-198.0,0.00026028,8]
[367038983,1750630238645,-265.0,0.00026037,2]
[367038984,1750630238654,-1614.82983397,0.00026049,2]
[367038985,1750630238663,-1614.82983397,0.00026051,2]
[367038986,1750630238672,-153.0,0.00026059,30]
[367038987,1750630238681,-153.0,0.00026059,30]
[367038988,1750630238690,-153.0,0.00026059,30]
[367038989,1750630238700,-153.0,0.00026059,30]
[367038990,1750630238709,-153.0,0.00026059,30]
[367038991,1750630238718,-153.0,0.00026059,30]
[367038992,1750630238727,-153.0,0.00026059,30]
[367038993,1750630238736,-153.0,0.00026059,30]
[367038994,1750630238746,-153.0,0.00026059,30]
[367038995,1750630238756,-153.0,0.00026059,30]
[367038996,1750630238765,-153.0,0.00026059,30]
[367038997,1750630238774,-153.0,0.00026059,30]
[367038998,1750630238784,-153.0,0.00026059,30]
[367038999,1750630238793,-153.0,0.00026059,30]
[367039000,1750630238802,-153.0,0.00026059,30]
[367039001,1750630238813,-153.0,0.00026059,30]
[367039002,1750630238822,-153.0,0.00026059,30]
[367039003,1750630238831,-153.0,0.00026059,30]
[367039004,1750630238840,-153.0,0.00026059,30]
[367039005,1750630238850,-153.0,0.00026059,30]
[367039006,1750630238866,-153.0,0.00026059,30]
[367039008,1750630238875,-153.0,0.0002606,30]
[367039009,1750630238884,-153.0,0.0002606,30]
[367039010,1750630238893,-153.0,0.0002606,30]
[367039011,1750630238903,-153.0,0.0002606,30]
[367039012,1750630238914,-153.0,0.0002606,30]
[367039013,1750630238923,-153.0,0.0002606,30]
[367039014,1750630238932,-153.0,0.0002606,30]
[367039015,1750630238941,-153.0,0.0002606,30]
[367039016,1750630238951,-153.0,0.0002606,30]
[367039017,1750630238960,-153.0,0.0002606,30]
[367039018,1750630238969,-153.0,0.0002606,30]
[367039019,1750630238977,-153.0,0.0002606,30]
[367039020,1750630238987,-153.0,0.0002606,30]
[367039021,1750630238996,-153.0,0.0002606,30]
[367039022,1750630239006,-153.0,0.0002606,30]
[367039023,1750630239015,-153.0,0.0002606,30]
[367039024,1750630239025,-153.0,0.0002606,30]
[367039025,1750630239034,-153.0,0.0002606,30]
[367039026,1750630239044,-153.0,0.0002606,30]
[367039027,1750630239053,-153.0,0.0002606,30]
[367039028,1750630239063,-153.0,0.0002606,30]
[367039029,1750630239072,-153.0,0.00026061,30]
[367039030,1750630239081,-153.0,0.00026061,30]
[367039031,1750630239091,-153.0,0.00026061,30]
[367039032,1750630239100,-153.0,0.00026061,30]
[367039033,1750630239110,-153.0,0.00026061,30]
[367039034,1750630239120,-153.0,0.00026061,30]
[367039035,1750630239131,-153.0,0.00026061,30]
[367039036,1750630239140,-153.0,0.00026061,30]
[367039037,1750630239150,-153.0,0.00026061,30]
[367039038,1750630239160,-153.0,0.00026061,30]
[367039039,1750630239169,-153.0,0.00026061,30]
[367039040,1750630239179,-153.0,0.00026061,30]
[367039041,1750630239188,-153.0,0.00026061,30]
[367039042,1750630239198,-153.0,0.00026061,30]
[367039043,1750630239208,-153.0,0.00026061,30]
[367039044,1750630239218,-153.0,0.00026061,30]
[367039045,1750630239228,-153.0,0.00026061,30]
[367039046,1750630239238,-153.0,0.00026061,30]
[367039047,1750630239249,-153.0,0.00026061,30]
[367039048,1750630239260,-153.0,0.00026061,30]
[367039049,1750630239270,-153.0,0.00026061,30]
[367039050,1750630239281,-153.0,0.00026062,30]
[367039051,1750630239291,-153.0,0.00026062,30]
[367039052,1750630239300,-153.0,0.00026062,30]
[367039053,1750630239309,-153.0,0.00026062,30]
[367039054,1750630239321,-153.0,0.00026062,30]
[367039055,1750630239331,-153.0,0.00026062,30]
[367039056,1750630239341,-153.0,0.00026062,30]
[367039057,1750630239350,-153.0,0.00026062,30]
[367039058,1750630239360,-153.0,0.00026062,30]
[367039059,1750630239369,-153.0,0.00026062,30]
[367039060,1750630239379,-153.0,0.00026062,30]
[367039061,1750630239389,-153.0,0.00026062,30]
[367039062,1750630239399,-153.0,0.00026062,30]
[367039063,1750630239408,-153.0,0.00026062,30]
[367039064,1750630239417,-153.0,0.00026062,30]
[367039065,1750630239427,-153.0,0.00026062,30]
[367039066,1750630239436,-153.0,0.00026062,30]
[367039067,1750630239446,-153.0,0.00026062,30]
[367039068,1750630239456,-153.0,0.00026062,30]
[367039069,1750630239466,-153.0,0.00026062,30]
[367039070,1750630239475,-153.0,0.00026062,30]
[367039071,1750630239485,-202.62406334,0.00026067,14]
[367039073,1750630239495,-151.0,0.00026067,30]
[367039074,1750630239504,-153.0,0.00026067,30]
[367039075,1750630239515,-153.0,0.00026067,30]
[367039076,1750630239524,-153.0,0.00026067,30]
[367039077,1750630239534,-153.0,0.00026067,30]
[367039078,1750630239544,-153.0,0.00026067,30]
[367039080,1750630239553,-153.0,0.00026067,30]
[367039081,1750630239565,-153.0,0.00026067,30]
[367039082,1750630239575,-153.0,0.00026067,30]
[367039083,1750630239584,-153.0,0.00026067,30]
[367039084,1750630239593,-153.0,0.00026067,30]
[367039085,1750630239603,-153.0,0.00026067,30]
[367039086,1750630239612,-153.0,0.00026067,30]
[367039087,1750630239621,-153.0,0.00026067,30]
[367039088,1750630239631,-153.0,0.00026067,30]
[367039089,1750630239640,-153.0,0.00026067,30]
[367039090,1750630239650,-153.0,0.00026067,30]
[367039091,1750630239660,-151.0,0.00026068,30]
[367039092,1750630239669,-151.0,0.00026068,30]
[367039093,1750630239678,-166.86271131,0.00026077,2]
[367039094,1750630239688,-1290.61,0.000261,7]
[367039095,1750630239698,-425.01221603,0.00026122,30]
[367039096,1750630239707,-200.0,0.0002619,15]
[367039097,1750630239717,-403.0,0.00026198,7]
[367039098,1750630239726,-202.62406334,0.00026233,14]
[367039099,1750630239735,-250.0,0.00026285,2]
[367039100,1750630239745,-10000.0,0.000264,7]
[367039101,1750630239754,-846.39664074,0.000264,7]
[367039102,1750630239763,-425.01221603,0.000264,7]
[367039103,1750630239771,-202.62406334,0.000264,15]
[367039104,1750630239781,-228.52,0.00026471,2]
[367039105,1750630239789,-1119.301354,0.0002648,5]
[367039106,1750630239799,-3229.65966794,0.00026484,2]
[367039107,1750630239808,-3229.65966794,0.00026496,2]
[367039108,1750630239819,-609.56,0.00026497,3]
[367039109,1750630239828,-304.78,0.00026497,3]
[367039110,1750630239837,-152.39,0.00026497,3]
[367039111,1750630239846,-457.18,0.00026497,3]
[367039112,1750630239856,-847.82,0.00026497,3]
[367039113,1750630239865,-150.0,0.000265,2]
[367039114,1750630239875,-1997.929138,0.000265,5]
[367039115,1750630239884,-1000.0,0.000265,5]
[367039116,1750630239893,-151.0,0.00026503,7]
[367039117,1750630239903,-500.0,0.00026503,7]
[367039118,1750630239918,-246.504618,0.00026503,7]
[367039120,1750630239928,-246.504618,0.00026503,7]
[367039121,1750630239936,-246.504618,0.00026503,7]
[367039122,1750630239946,-246.504618,0.00026503,7]
[367039123,1750630239956,-246.504618,0.00026503,7]
[367039124,1750630239965,-246.504618,0.00026503,7]
[367039125,1750630239974,-246.504618,0.00026503,7]
[367039126,1750630239983,-246.504618,0.00026503,7]
[367039127,1750630239994,-246.504618,0.00026503,7]
[367039128,1750630240002,-246.504618,0.00026503,7]
[367039129,1750630240012,-246.504618,0.00026503,7]
[367039130,1750630240021,-246.504618,0.00026503,7]
[367039131,1750630240031,-246.504618,0.00026503,7]
[367039132,1750630240040,-246.504618,0.00026503,7]
[367039133,1750630240049,-246.504618,0.00026503,7]
[367039134,1750630240058,-246.504618,0.00026503,7]
[367039135,1750630240069,-246.504618,0.00026503,7]
[367039136,1750630240078,-246.504618,0.00026503,7]
[367039137,1750630240087,-246.504618,0.00026503,7]
[367039138,1750630240096,-246.50461,0.00026503,7]
[367039139,1750630240105,-500.0,0.00026503,10]
[367039140,1750630240114,-500.0,0.00026503,10]
[367039141,1750630240123,-589.228358,0.00026503,2]
[367039142,1750630240132,-500.0,0.00026503,2]
[367039143,1750630240142,-500.0,0.00026503,2]
[367039144,1750630240151,-500.0,0.00026503,2]
[367039145,1750630240160,-500.0,0.00026503,2]
[367039146,1750630240169,-500.0,0.00026503,2]
[367039147,1750630240177,-453.02895447,0.00026503,2]
[367039148,1750630240186,-160.0,0.00026503,7]
[367039149,1750630240195,-160.0,0.00026503,30]
[367039150,1750630240205,-524.02598587,0.00026503,30]
[367039151,1750630240214,-151.0,0.00026504,2]
[367039152,1750630240224,-8537.60512578,0.00026504,5]
[367039153,1750630240237,-1462.39487422,0.00026504,5]
[367039154,1750630240246,-1500.0,0.00026506,28]
[367039155,1750630240255,-1500.0,0.00026506,28]
[367039156,1750630240264,-1500.0,0.00026506,28]
[367039157,1750630240273,-1500.0,0.00026506,28]
[367039158,1750630240282,-613.38714138,0.00026506,28]
[367039159,1750630240301,-886.61285862,0.00026506,28]
[367039160,1750630240311,-1500.0,0.00026506,28]
[367039161,1750630240322,-1254.32082142,0.00026506,28]
[367039162,1750630240333,-245.67917858,0.00026506,28]
[367039163,1750630240343,-1500.0,0.00026506,28]
[367039164,1750630240353,-1500.0,0.00026506,28]
[367039165,1750630240363,-1500.0,0.00026506,28]
[367039166,1750630240372,-1500.0,0.00026506,28]
[367039167,1750630240381,-1500.0,0.00026506,28]
[367039168,1750630240391,-1500.0,0.00026506,28]
[367039169,1750630240400,-1500.0,0.00026506,28]
[367039170,1750630240409,-1500.0,0.00026506,28]
[367039171,1750630240419,-1500.0,0.00026506,28]
[367039172,1750630240428,-1500.0,0.00026506,28]
[367039173,1750630240437,-1500.0,0.00026506,28]
[367039175,1750630240447,-1500.0,0.00026506,28]
[367039176,1750630240457,-1500.0,0.00026506,28]
[367039177,1750630240466,-1500.0,0.00026506,28]
[367039179,1750630240477,-1500.0,0.00026506,28]
[367039181,1750630240487,-1500.0,0.00026506,28]
[367039182,1750630240497,-1500.0,0.00026506,28]
[367039183,1750630240507,-1500.0,0.00026506,28]
[367039184,1750630240516,-1500.0,0.00026506,28]
[367039185,1750630240526,-1500.0,0.00026506,28]
[367039186,1750630240535,-1500.0,0.00026506,28]
[367039187,1750630240545,-1500.0,0.00026506,28]
[367039188,1750630240555,-1500.0,0.00026506,28]
[367039189,1750630240565,-1500.0,0.00026506,28]
[367039190,1750630240574,-1500.0,0.00026506,28]
[367039192,1750630240584,-1500.0,0.00026506,28]
[367039195,1750630240594,-1500.0,0.00026506,28]
[367039196,1750630240604,-1500.0,0.00026506,28]
[367039198,1750630240614,-1500.0,0.00026506,28]
[367039199,1750630240624,-1500.0,0.00026506,28]
[367039200,1750630240633,-1500.0,0.00026506,28]
[367039201,1750630240643,-1500.0,0.00026506,28]
[367039202,1750630240652,-1500.0,0.00026506,28]
[367039203,1750630240662,-1500.0,0.00026506,28]
[367039204,1750630240671,-1500.0,0.00026506,28]
[367039205,1750630240681,-1500.0,0.00026506,28]
[367039206,1750630240690,-1500.0,0.00026506,28]
[367039207,1750630240700,-1500.0,0.00026506,28]
[367039208,1750630240711,-1500.0,0.00026506,28]
[367039209,1750630240720,-1500.0,0.00026506,28]
[367039210,1750630240730,-1500.0,0.00026506,28]
[367039211,1750630240739,-1500.0,0.00026506,28]
[367039212,1750630240749,-1500.0,0.00026506,28]
[367039213,1750630240758,-1500.0,0.00026506,28]
[367039214,1750630240768,-1500.0,0.00026506,28]
[367039216,1750630240778,-1500.0,0.00026506,28]